bitfinex/quotes_ETHUSD_20250908
["timestamp","ask_amount","ask_price","bid_price","bid_amount"]
[1757351511770,5.95196747,4329.2,4329.1,7.309]
[1757351512519,7.18196747,4329.2,4329.1,11.199]
[1757351514561,8.41196747,4329.2,4329.1,11.199]
[1757351515063,8.41196747,4329.2,4329.1,7.309]
[1757351515227,8.41196747,4329.2,4329.1,11.198]
[1757351515820,8.41196747,4329.2,4329.1,7.309]
[1757351516021,10.43396747,4329.2,4329.1,11.198]
[1757351516832,10.43396747,4329.2,4329.1,11.197]
[1757351517818,11.66396747,4329.2,4329.1,11.197]
[1757351519335,12.89396747,4329.2,4329.1,11.197]
[1757351520743,14.12396747,4329.2,4329.1,11.197]
[1757351522059,15.35396747,4329.2,4329.1,11.197]
[1757351522902,14.56196747,4329.2,4329.1,11.197]
[1757351523188,11.69216747,4329.2,4329.1,11.197]
[1757351523345,12.92216747,4329.2,4329.1,11.197]
[1757351523956,15.87266747,4329.2,4329.1,11.197]
[1757351524760,17.10266747,4329.2,4329.1,11.197]
[1757351525689,17.10266747,4329.2,4329.1,14.197]
[1757351525690,13.69019559,4329.2,4329.1,14.197]
[1757351526165,14.92019559,4329.2,4329.1,14.197]
[1757351526754,17.87069559,4329.2,4329.1,14.197]
[1757351527667,19.10069559,4329.2,4329.1,14.197]
[1757351527893,21.24174747,4329.2,4329.1,14.197]
[1757351528488,13.53,4329.2,4329.1,14.4871]
[1757351528686,13.53,4329.2,4329.1,14.9482]
[1757351528861,14.76,4329.2,4329.1,17.3358]
[1757351529058,14.76,4329.2,4329.1,47.3358]
[1757351530293,15.99,4329.2,4329.1,47.3358]
[1757351531699,17.22,4329.2,4329.1,47.3358]
[1757351531860,17.22,4329.2,4329.1,47.3378]
[1757351532876,18.45,4329.2,4329.1,47.3378]
[1757351534304,19.68,4329.2,4329.1,47.3378]
[1757351535836,20.91,4329.2,4329.1,47.3378]
[1757351537420,22.14,4329.2,4329.1,47.3378]
[1757351539174,23.37,4329.2,4329.1,47.3378]
[1757351540512,24.6,4329.2,4329.1,47.3378]
[1757351541725,25.83,4329.2,4329.1,47.3378]
[1757351542295,25.83,4329.2,4329.1,17.3378]
[1757351542510,25.83,4329.2,4329.1,47.3378]
[1757351542710,25.83,4329.2,4329.1,44.4851]
[1757351542901,25.83,4329.2,4329.1,40.6011]
[1757351543099,27.06,4329.2,4329.1,44.4851]
[1757351543604,30.3148,4329.2,4329.1,7.311]
[1757351543910,31.53300493,4329.2,4329.1,7.311]
[1757351544112,31.53300493,4329.2,4329.1,11.195]
[1757351544324,31.53300493,4329.2,4329.1,14.195]
[1757351544325,30.3148,4329.2,4329.1,14.195]
[1757351544490,31.5448,4329.2,4329.1,14.195]
[1757351545926,32.7748,4329.2,4329.1,14.195]
[1757351546327,32.7748,4329.2,4329.1,10.311]
[1757351546540,32.7748,4329.2,4329.1,14.195]
[1757351547435,34.0048,4329.2,4329.1,14.195]
[1757351547639,31.0543,4329.2,4329.1,14.195]
[1757351547825,30.75,4329.2,4329.1,44.195]
[1757351548623,32.7382,4329.2,4329.1,44.195]
[1757351549837,31.98,4329.2,4329.1,44.195]
[1757351550052,33.21,4329.2,4329.1,44.195]
[1757351550230,33.9682,4329.2,4329.1,44.195]
[1757351550430,36.4648,4329.2,4329.1,44.195]
[1757351551610,37.6948,4329.2,4329.1,44.195]
[1757351552237,34.7443,4329.2,4329.1,44.195]
[1757351553048,35.9743,4329.2,4329.1,44.195]
[1757351554047,35.67,4329.2,4329.1,44.195]
[1757351554222,36.9,4329.2,4329.1,44.195]
[1757351554727,36.9,4329.2,4329.1,44.4918]
[1757351554908,36.9,4329.2,4329.1,44.195]
[1757351555752,38.13,4329.2,4329.1,44.195]
[1757351555904,38.4461,4329.2,4329.1,44.195]
[1757351557012,39.6761,4329.2,4329.1,44.195]
[1757351558151,46.94400356,4329.2,4329.1,10.311]
[1757351558333,46.94400356,4329.2,4329.1,11.195]
[1757351558334,48.17400356,4329.2,4329.1,11.195]
[1757351558534,45.86410797,4329.2,4329.1,11.195]
[1757351558856,48.17400356,4329.2,4329.1,14.195]
[1757351559021,50.79400356,4329.2,4329.1,14.195]
[1757351559223,50.79400356,4329.2,4329.1,7.311]
[1757351559480,50.79400356,4329.2,4329.1,11.195]
[1757351559650,52.02400356,4329.2,4329.1,14.195]
[1757351561257,53.25400356,4329.2,4329.1,14.195]
[1757351562649,54.48400356,4329.2,4329.1,14.195]
[1757351564281,55.71400356,4329.2,4329.1,14.195]
[1757351565752,56.94400356,4329.2,4329.1,14.195]
[1757351567284,58.17400356,4329.2,4329.1,14.195]
[1757351569180,49.2,4329.2,4329.1,14.4918]
[1757351569583,49.2,4329.2,4329.1,47.3255]
[1757351570586,50.43,4329.2,4329.1,47.3255]
[1757351570885,50.43,4329.2,4329.1,44.9376]
[1757351571185,50.43,4329.2,4329.1,44.4918]
[1757351571886,51.66,4329.2,4329.1,44.9376]
[1757351572090,51.66,4329.2,4329.1,47.3255]
[1757351573364,52.89,4329.2,4329.1,47.3255]
[1757351574463,52.89,4329.2,4329.1,46.8797]
[1757351574683,54.12,4329.2,4329.1,44.4918]
[1757351575115,54.12,4329.2,4329.1,14.195]
[1757351575576,54.12,4329.2,4329.1,14.4918]
[1757351576213,55.35,4329.2,4329.1,14.4918]
[1757351577013,56.1023,4329.2,4329.1,14.195]
[1757351577227,58.3562,4329.2,4329.1,14.195]
[1757351577517,59.5862,4329.2,4329.1,14.195]
[1757351577667,56.8961,4329.2,4329.1,14.195]
[1757351578010,56.8961,4329.2,4329.1,10.311]
[1757351578514,59.5862,4329.2,4329.1,14.194]
[1757351578709,60.8162,4329.2,4329.1,14.194]
[1757351580320,59.3561,4329.2,4329.1,14.194]
[1757351580521,59.04,4329.2,4329.1,14.4908]
[1757351581816,60.27,4329.2,4329.1,14.4908]
[1757351582884,60.5616,4329.2,4329.1,14.194]
[1757351583079,67.44864136,4329.2,4329.1,10.311]
[1757351583279,69.13574136,4329.2,4329.1,10.311]
[1757351583487,69.13574136,4329.2,4329.1,14.194]
[1757351584607,70.36574136,4329.2,4329.1,14.194]
[1757351585534,65.4649,4329.2,4329.1,14.194]
[1757351585738,62.73,4329.2,4329.1,14.5001]
[1757351586030,63.96,4329.2,4329.1,14.194]
[1757351586947,63.96,4329.2,4329.1,14.5001]
[1757351587431,65.19,4329.2,4329.1,14.5001]
[1757351587829,65.19,4329.2,4329.1,14.9696]
[1757351587988,65.19,4329.2,4329.1,14.5001]
[1757351588896,66.42,4329.2,4329.1,47.4304]
[1757351589669,66.42,4329.2,4329.1,46.9609]
[1757351589993,66.42,4329.2,4329.1,47.4304]
[1757351590380,67.65,4329.2,4329.1,47.4304]
[1757351590776,67.65,4329.2,4329.1,44.9696]
[1757351591362,67.65,4329.2,4329.1,44.5001]
[1757351591756,68.88,4329.2,4329.1,44.5001]
[1757351592106,68.88,4329.2,4329.1,44.194]
[1757351592757,68.88,4329.2,4329.1,44.5001]
[1757351593253,70.11,4329.2,4329.1,44.5001]
[1757351593603,70.11,4329.2,4329.1,44.194]
[1757351593898,70.4016,4329.2,4329.1,44.194]
[1757351594586,73.302,4329.2,4329.1,14.193]
[1757351594817,74.532,4329.2,4329.1,14.193]
[1757351596232,78.02990797,4329.2,4329.1,14.193]
[1757351596789,75.12950797,4329.2,4329.1,14.193]
[1757351596988,72.8616,4329.2,4329.1,10.311]
[1757351597215,72.57,4329.2,4329.1,14.193]
[1757351597416,72.6852,4329.2,4329.1,44.4991]
[1757351597605,73.9152,4329.2,4329.1,44.4991]
[1757351598116,73.8,4329.2,4329.1,47.4294]
[1757351598985,75.3216,4329.2,4329.1,40.311]
[1757351599186,75.3216,4329.2,4329.1,14.193]
[1757351599402,82.79980356,4329.2,4329.1,10.311]
[1757351599603,82.79980356,4329.2,4329.1,14.193]
[1757351600457,84.02980356,4329.2,4329.1,14.193]
[1757351601936,85.25980356,4329.2,4329.1,14.193]
[1757351603320,86.48980356,4329.2,4329.1,14.193]
[1757351603528,78.72,4329.2,4329.1,14.193]
[1757351603727,79.0116,4329.2,4329.1,14.193]
[1757351604426,81.912,4329.2,4329.1,14.193]
[1757351604637,84.22189559,4329.2,4329.1,10.311]
[1757351604866,85.45189559,4329.2,4329.1,14.193]
[1757351605396,87.71980356,4329.2,4329.1,14.193]
[1757351606180,88.94980356,4329.2,4329.1,14.193]
[1757351607488,90.17980356,4329.2,4329.1,14.193]
[1757351608403,90.17980356,4329.2,4329.1,11.193]
[1757351608752,91.40980356,4329.2,4329.1,11.193]
[1757351610318,92.63980356,4329.2,4329.1,11.193]
[1757351611567,93.86980356,4329.2,4329.1,11.193]
[1757351612741,93.86980356,4329.2,4329.1,14.193]
[1757351612873,92.19940356,4329.2,4329.1,14.193]
[1757351614686,93.42940356,4329.2,4329.1,14.193]
[1757351616098,94.65940356,4329.2,4329.1,14.193]
[1757351617399,95.88940356,4329.2,4329.1,14.193]
[1757351617998,93.57950797,4329.2,4329.1,14.193]
[1757351618214,95.88940356,4329.2,4329.1,14.193]
[1757351618543,95.88940356,4329.2,4329.1,17.3266]
[1757351618544,91.02,4329.2,4329.1,17.3266]
[1757351619032,92.25,4329.2,4329.1,17.3266]
[1757351620296,93.48,4329.2,4329.1,17.3266]
[1757351620995,93.48,4329.2,4329.1,14.9342]
[1757351621823,94.71,4329.2,4329.1,14.9342]
[1757351623197,95.94,4329.2,4329.1,14.9342]
[1757351624044,95.94,4329.2,4329.1,16.8773]
[1757351624247,95.94,4329.2,4329.1,47.3266]
[1757351624608,97.17,4329.2,4329.1,47.3266]
[1757351625728,97.17,4329.2,4329.1,40.6029]
[1757351625930,98.4,4329.2,4329.1,14.4839]
[1757351626791,98.4,4329.2,4329.1,14.192]
[1757351627193,98.6902,4329.2,4329.1,14.192]
[1757351627506,99.9202,4329.2,4329.1,14.192]
[1757351628434,99.63,4329.2,4329.1,14.192]
[1757351628795,100.86,4329.2,4329.1,14.4839]
[1757351630135,102.09,4329.2,4329.1,14.4839]
[1757351631654,103.32,4329.2,4329.1,14.4839]
[1757351632151,103.32,4329.2,4329.1,14.192]
[1757351632470,109.97618876,4329.2,4329.1,10.311]
[1757351632597,109.97618876,4329.2,4329.1,7.311]
[1757351632798,109.97618876,4329.2,4329.1,11.191]
[1757351633096,111.20618876,4329.2,4329.1,14.191]
[1757351633639,111.20618876,4329.2,4329.1,11.191]
[1757351634012,111.20618876,4329.2,4329.1,14.191]
[1757351634636,113.22818876,4329.2,4329.1,14.191]
[1757351635896,114.45818876,4329.2,4329.1,14.191]
[1757351637642,115.68818876,4329.2,4329.1,14.191]
[1757351639037,116.91818876,4329.2,4329.1,14.191]
[1757351639427,119.53818876,4329.2,4329.1,14.191]
[1757351640942,120.76818876,4329.2,4329.1,14.191]
[1757351642369,121.98748876,4329.2,4329.1,14.191]
[1757351643465,121.57368876,4329.2,4329.1,14.191]
[1757351643655,123.24348876,4329.2,4329.1,14.191]
[1757351645177,124.47348876,4329.2,4329.1,14.191]
[1757351646576,125.70348876,4329.2,4329.1,14.191]
[1757351648675,126.93348876,4329.2,4329.1,14.191]
[1757351649941,128.16348876,4329.2,4329.1,14.191]
[1757351650246,128.16348876,4329.2,4329.1,5.654]
[1757351651478,129.39348876,4329.2,4329.1,5.654]
[1757351652952,130.62348876,4329.2,4329.1,5.654]
[1757351653472,130.62348876,4329.2,4329.1,1.774]
[1757351653683,130.62348876,4329.2,4329.1,5.654]
[1757351654358,131.85348876,4329.2,4329.1,5.654]
[1757351656025,131.85348876,4329.2,4329.0,0.002]
[1757351656026,2.30994895,4329.1,4329.0,0.002]
[1757351656239,4.57785692,4329.1,4329.0,0.002]
[1757351656514,7.80035692,4329.1,4329.0,0.002]
[1757351657269,7.80035692,4329.1,4329.0,3.882]
[1757351657670,6.59985692,4329.1,4329.0,3.882]
[1757351658518,6.91605692,4329.1,4329.0,3.882]
[1757351659313,11.05235692,4329.1,4329.0,3.882]
[1757351660120,11.05235692,4329.1,4328.9,1.773]
[1757351660121,3.10200231,4329.0,4328.9,1.773]
[1757351660263,3.10200231,4329.0,4328.8,0.025]
[1757351660264,0.1152,4328.9,4328.8,1.798]
[1757351660467,1.2234,4328.9,4328.8,1.798]
[1757351660714,1.2234,4328.9,4328.6,0.002]
[1757351660715,3.1021624,4328.7,4328.6,0.002]
[1757351660870,3.1021624,4328.7,4328.6,1.775]
[1757351661207,3.1021624,4328.7,4328.6,2.0703]
[1757351661383,4.22417524,4328.7,4328.6,5.9503]
[1757351662404,5.45417524,4328.7,4328.6,5.9503]
[1757351663715,5.45417524,4328.7,4328.6,1.775]
[1757351663716,8.67667524,4328.7,4328.6,1.775]
[1757351663920,9.90667524,4328.7,4328.6,5.654]
[1757351664619,6.68417524,4328.7,4328.6,5.9493]
[1757351665227,7.91417524,4328.7,4328.6,5.9493]
[1757351665432,7.91417524,4328.7,4328.6,5.654]
[1757351666633,9.14417524,4328.7,4328.6,5.654]
[1757351667324,9.14417524,4328.7,4328.6,11.8296]
[1757351667325,7.2301624,4328.7,4328.6,11.8296]
[1757351667828,7.2301624,4328.7,4328.6,9.4089]
[1757351667986,7.2301624,4328.7,4328.6,8.9493]
[1757351668180,7.2301624,4328.7,4328.6,9.4089]
[1757351669209,7.2301624,4328.7,4328.6,8.9493]
[1757351669639,7.2301624,4328.7,4328.6,9.4089]
[1757351669860,4.92,4328.7,4328.6,11.8296]
[1757351670192,7.2301624,4328.7,4328.6,11.8296]
[1757351675761,7.2301624,4328.7,4328.6,9.4089]
[1757351677798,7.5316624,4328.7,4328.6,8.653]
[1757351677984,11.75683963,4328.7,4328.6,8.653]
[1757351681396,8.56693963,4328.7,4328.6,8.653]
[1757351681558,8.56693963,4328.7,4328.6,8.9455]
[1757351682092,8.56693963,4328.7,4328.6,8.653]
[1757351683287,8.86843963,4328.7,4328.6,8.653]
[1757351684793,9.34163963,4328.7,4328.6,8.653]
[1757351684995,11.75683963,4328.7,4328.6,8.653]
[1757351685505,11.75683963,4328.7,4328.6,4.775]
[1757351685706,11.75683963,4328.7,4328.6,8.653]
[1757351685892,11.75683963,4328.7,4328.6,5.653]
[1757351687188,11.75683963,4328.7,4328.6,5.652]
[1757351687910,14.37683963,4328.7,4328.6,5.652]
[1757351691214,11.18693963,4328.7,4328.6,5.652]
[1757351691539,14.37683963,4328.7,4328.6,5.652]
[1757351691832,13.90363963,4328.7,4328.6,5.652]
[1757351692038,11.48843963,4328.7,4328.6,5.652]
[1757351692697,13.90363963,4328.7,4328.6,1.775]
[1757351692898,14.37683963,4328.7,4328.6,5.652]
[1757351699814,11.48843963,4328.7,4328.6,5.652]
[1757351700017,11.18693963,4328.7,4328.6,5.9445]
[1757351700216,4.92,4328.7,4328.6,5.9445]
[1757351700539,4.92,4328.7,4328.6,11.7512]
[1757351700943,4.92,4328.7,4328.6,11.3069]
[1757351701140,4.92,4328.7,4328.6,11.7447]
[1757351701141,5.0352,4328.7,4328.6,11.7447]
[1757351701552,5.0352,4328.7,4328.6,12.43748385]
[1757351701906,5.0352,4328.7,4328.6,42.43748385]
[1757351702101,4.92,4328.7,4328.6,38.56048385]
[1757351702306,4.92,4328.7,4328.6,42.43648385]
[1757351705129,4.92,4328.7,4328.6,38.56048385]
[1757351705450,4.92,4328.7,4328.6,12.43648385]
[1757351705954,4.92,4328.7,4328.6,5.76028385]
[1757351706113,4.92,4328.7,4328.6,11.6491]
[1757351706455,4.92,4328.7,4328.6,12.34192704]
[1757351706612,0.001,4328.8,4328.7,3.0]
[1757351706814,0.1162,4328.8,4328.7,5.7056]
[1757351707013,0.1162,4328.8,4328.7,6.0115]
[1757351708334,1.3462,4328.8,4328.7,6.0115]
[1757351709359,1.3462,4328.8,4328.7,6.12814446]
[1757351709532,1.231,4328.8,4328.7,36.12814446]
[1757351709733,2.461,4328.8,4328.7,36.12814446]
[1757351710069,2.461,4329.1,4328.8,3.0]
[1757351710252,0.68958182,4329.1,4329.0,3.3059]
[1757351710411,118.44084059,4329.2,4329.1,43.0]
[1757351710788,118.44084059,4329.2,4329.1,39.8865]
[1757351711916,118.44084059,4329.2,4329.1,40.5791143]
[1757351712568,119.67084059,4329.2,4329.1,40.5791143]
[1757351713285,119.67084059,4329.2,4329.1,40.75433443]
[1757351714060,115.43842241,4329.2,4329.1,40.75433443]
[1757351715209,115.43842241,4329.2,4329.1,40.98523443]
[1757351715457,116.66842241,4329.2,4329.1,40.98523443]
[1757351715757,116.66842241,4329.2,4329.1,40.75433443]
[1757351716141,114.44347328,4329.2,4329.1,40.75433443]
[1757351716344,114.44347328,4329.2,4329.1,40.86953443]
[1757351716514,114.44347328,4329.2,4329.1,11.66153443]
[1757351716718,115.67347328,4329.2,4329.1,11.66153443]
[1757351717322,115.67347328,4329.2,4329.1,41.66153443]
[1757351717518,115.67347328,4329.2,4329.1,37.78653443]
[1757351717853,115.67347328,4329.2,4329.1,41.89143443]
[1757351718036,116.90347328,4329.2,4329.1,42.11083584]
[1757351718449,116.90347328,4329.2,4329.1,42.34532085]
[1757351719452,118.13347328,4329.2,4329.1,42.34532085]
[1757351720923,119.36347328,4329.2,4329.1,41.87993584]
[1757351721158,119.36347328,4329.2,4329.1,41.66053443]
[1757351721925,119.36347328,4329.2,4329.1,41.66253443]
[1757351722130,119.36447328,4329.2,4329.1,41.66253443]
[1757351722377,120.59447328,4329.2,4329.1,41.66253443]
[1757351723431,120.59447328,4329.2,4329.1,37.78853443]
[1757351723634,121.82447328,4329.2,4329.1,5.16393443]
[1757351724065,121.82447328,4329.2,4329.1,40.86953443]
[1757351724376,121.82447328,4329.2,4329.1,41.66153443]
[1757351724939,123.05447328,4329.2,4329.1,41.66153443]
[1757351725634,123.05447328,4329.2,4329.1,41.88093584]
[1757351726377,124.28447328,4329.2,4329.1,42.11183584]
[1757351726675,124.28447328,4329.2,4329.1,12.11183584]
[1757351726875,124.28447328,4329.2,4329.1,12.34632085]
[1757351727053,124.28447328,4329.2,4329.1,42.34632085]
[1757351727250,124.28447328,4329.2,4329.1,42.11542085]
[1757351727792,125.51447328,4329.2,4329.1,42.11542085]
[1757351728279,125.51447328,4329.2,4329.1,42.34632085]
[1757351728438,125.51447328,4329.2,4329.1,41.66153443]
[1757351728639,125.51447328,4329.2,4329.1,41.88093584]
[1757351729265,125.51447328,4329.2,4329.1,42.11183584]
[1757351729441,125.51447328,4329.2,4329.1,43.73332085]
[1757351729442,126.74447328,4329.2,4329.1,43.73332085]
[1757351729652,126.74447328,4329.2,4329.1,45.80287424]
[1757351729869,126.74447328,4329.2,4329.1,43.73332085]
[1757351730399,126.74447328,4329.2,4329.1,45.79463701]
[1757351730763,127.97447328,4329.2,4329.1,45.79463701]
[1757351731150,127.97447328,4329.2,4329.1,43.92840635]
[1757351732038,129.20447328,4329.2,4329.1,43.92840635]
[1757351732244,100.66147328,4329.2,4329.1,43.92840635]
[1757351732454,99.73547328,4329.2,4329.1,43.92840635]
[1757351732659,79.20447328,4329.2,4329.1,43.92840635]
[1757351733246,76.53598563,4329.2,4329.1,46.35840635]
[1757351733587,76.43516348,4329.2,4329.1,46.35840635]
[1757351733786,75.76716348,4329.2,4329.1,46.35840635]
[1757351733952,73.64716348,4329.2,4329.1,46.35840635]
[1757351734162,73.64716348,4329.2,4329.1,42.48540635]
[1757351734375,73.64716348,4329.2,4329.1,45.90251993]
[1757351734553,69.40716348,4329.2,4329.1,39.40643443]
[1757351734756,70.63716348,4329.2,4329.1,45.33749977]
[1757351735671,70.63716348,4329.2,4329.1,45.59593455]
[1757351736167,71.86716348,4329.2,4329.1,45.59593455]
[1757351737055,71.86716348,4329.2,4329.1,37.37389977]
[1757351737253,71.86716348,4329.2,4329.1,41.24489977]
[1757351737457,71.86716348,4329.2,4329.1,39.18483443]
[1757351737768,73.09716348,4329.2,4329.1,9.61713443]
[1757351738100,73.09716348,4329.2,4329.1,39.61713443]
[1757351738794,73.09716348,4329.2,4329.1,56.44513443]
[1757351738961,74.32716348,4329.2,4329.1,56.44513443]
[1757351739392,74.32716348,4329.2,4329.1,58.50519977]
[1757351740373,75.55716348,4329.2,4329.1,58.50519977]
[1757351741491,75.55716348,4329.2,4329.1,56.44513443]
[1757351741689,76.78716348,4329.2,4329.1,56.44513443]
[1757351742802,76.78716348,4329.2,4329.1,58.84263443]
[1757351743101,78.01716348,4329.2,4329.1,58.84263443]
[1757351743867,78.01716348,4329.2,4329.1,49.32163443]
[1757351744559,79.24716348,4329.2,4329.1,46.92413443]
[1757351745407,79.24716348,4329.2,4329.1,46.49183443]
[1757351746107,80.47716348,4329.2,4329.1,46.49183443]
[1757351747218,80.47716348,4329.2,4329.1,48.92183443]
[1757351747532,81.70716348,4329.2,4329.1,46.49183443]
[1757351747876,81.70716348,4329.2,4329.1,40.95583443]
[1757351748619,81.70716348,4329.2,4329.1,40.64993443]
[1757351748816,82.93716348,4329.2,4329.1,55.70593443]
[1757351749020,82.93716348,4329.2,4329.1,55.99663443]
[1757351749167,82.66034132,4329.2,4329.1,55.99663443]
[1757351749580,82.66034132,4329.2,4329.1,58.88571158]
[1757351750305,83.89034132,4329.2,4329.1,58.88571158]
[1757351750610,83.89034132,4329.2,4329.1,58.59501158]
[1757351750806,83.89034132,4329.2,4329.1,55.70593443]
[1757351751585,85.12034132,4329.2,4329.1,58.59501158]
[1757351753205,86.35034132,4329.2,4329.1,58.59501158]
[1757351753704,86.35034132,4329.2,4329.1,55.70593443]
[1757351753930,86.35034132,4329.2,4329.1,40.64993443]
[1757351754413,81.99021833,4329.2,4329.1,43.5508327]
[1757351754708,83.22021833,4329.2,4329.1,43.5508327]
[1757351755704,83.22021833,4329.2,4329.1,40.64993443]
[1757351755903,84.75061833,4329.2,4329.1,38.87893443]
[1757351757511,85.98061833,4329.2,4329.1,38.87893443]
[1757351758409,85.68021833,4329.2,4329.1,38.87893443]
[1757351758814,86.91021833,4329.2,4329.1,55.70593443]
[1757351759344,86.63338135,4329.2,4329.1,55.70593443]
[1757351760105,86.63338135,4329.2,4329.1,52.82793443]
[1757351760320,87.86338135,4329.2,4329.1,53.11863443]
[1757351761042,87.86338135,4329.2,4329.1,43.64286921]
[1757351761648,89.09338135,4329.2,4329.1,43.64286921]
[1757351762544,84.73345367,4329.2,4329.1,43.64286921]
[1757351762919,85.96345367,4329.2,4329.1,43.64286921]
[1757351763704,85.96345367,4329.2,4329.1,43.87735422]
[1757351764309,87.19345367,4329.2,4329.1,43.87735422]
[1757351764756,82.15645367,4329.2,4329.1,43.87735422]
[1757351764913,82.15645367,4329.2,4329.1,41.47985422]
[1757351765107,82.15645367,4329.2,4329.1,41.24536921]
[1757351765327,81.93745367,4329.2,4329.1,41.24536921]
[1757351765643,47.32345367,4329.2,4329.1,19.03706921]
[1757351765849,46.76982465,4329.2,4329.1,21.70155422]
[1757351766142,46.41582465,4329.2,4329.1,20.44747735]
[1757351766347,44.86782465,4329.2,4329.1,23.64999234]
[1757351766706,44.86782465,4329.2,4329.1,18.07455756]
[1757351766910,46.09782465,4329.2,4329.1,13.91485756]
[1757351767103,46.83302465,4329.2,4329.1,17.78385756]
[1757351767351,49.30532465,4329.2,4329.1,15.60585756]
[1757351767521,49.30532465,4329.2,4329.1,8.44493443]
[1757351767725,49.30532465,4329.2,4329.1,12.31293443]
[1757351768456,48.41532465,4329.2,4329.1,13.69793443]
[1757351768653,48.41532465,4329.2,4329.1,23.21793443]
[1757351768815,48.41532465,4329.2,4329.1,30.52393443]
[1757351769011,47.98222465,4329.2,4329.1,30.52393443]
[1757351769211,48.41532465,4329.2,4329.1,30.52393443]
[1757351769465,43.08782465,4329.2,4329.1,27.95663443]
[1757351769756,43.08782465,4329.2,4329.1,16.69706921]
[1757351770048,44.31782465,4329.2,4329.1,23.86706921]
[1757351770277,44.04101074,4329.2,4329.1,23.86706921]
[1757351770556,33.93498519,4329.2,4329.1,25.87555422]
[1757351770738,27.57498519,4329.2,4329.1,26.07063972]
[1757351771057,12.38895964,4329.2,4329.1,30.15556285]
[1757351771226,11.49895964,4329.2,4329.1,57.82956285]
[1757351771427,0.001,4329.6,4329.5,1.0229]
[1757351771629,0.001,4329.6,4329.5,41.60399735]
[1757351771855,0.001,4329.6,4329.5,42.0068]
[1757351772439,0.001,4329.6,4329.5,44.4368]
[1757351772763,1.231,4329.6,4329.5,44.4368]
[1757351772919,44.174,4330.0,4329.9,2.4079]
[1757351773124,44.174,4330.0,4329.9,39.2759]
[1757351773326,44.174,4330.0,4329.9,39.3911]
[1757351773549,44.174,4330.0,4329.9,39.7018]
[1757351773920,48.1784,4330.0,4329.9,39.3911]
[1757351774257,45.404,4330.0,4329.9,39.3911]
[1757351775317,45.404,4330.0,4329.9,42.29166143]
[1757351775544,46.634,4330.0,4329.9,42.29166143]
[1757351776267,46.634,4330.0,4329.9,42.98386663]
[1757351776733,49.8415,4330.0,4329.9,36.70796663]
[1757351776939,51.0715,4330.0,4329.9,37.6754052]
[1757351777635,51.0715,4330.0,4329.9,38.4674052]
[1757351778154,51.0715,4330.0,4329.9,33.8074052]
[1757351778320,51.0715,4330.0,4329.9,37.6754052]
[1757351778321,52.3015,4330.0,4329.9,37.6754052]
[1757351778645,52.3015,4330.0,4329.9,45.1094052]
[1757351778835,52.3015,4330.0,4329.9,52.4154052]
[1757351779024,52.3015,4330.0,4329.9,52.6463052]
[1757351779668,53.5315,4330.0,4329.9,52.6463052]
[1757351781046,54.7615,4330.0,4329.9,52.6463052]
[1757351781717,54.7615,4330.0,4329.9,48.5474052]
[1757351781919,54.7615,4330.0,4329.9,52.4154052]
[1757351782361,55.9915,4330.0,4329.9,52.4154052]
[1757351783349,55.9915,4330.0,4329.9,22.4154052]
[1757351783549,55.9915,4330.0,4329.9,52.4154052]
[1757351783862,57.2215,4330.0,4329.9,52.4154052]
[1757351785263,55.244,4330.0,4329.9,54.0313052]
[1757351785460,55.244,4330.0,4329.9,53.64752499]
[1757351786431,55.244,4330.0,4329.9,53.87842499]
[1757351786627,56.474,4330.0,4329.9,53.87842499]
[1757351787140,56.474,4330.0,4329.9,41.70142499]
[1757351787341,56.474,4330.0,4329.9,44.15792499]
[1757351787978,48.39917112,4330.0,4329.9,41.46693998]
[1757351788138,46.14670534,4330.0,4329.9,39.69593998]
[1757351788667,46.14670534,4330.0,4329.9,54.32243998]
[1757351788866,46.14670534,4330.0,4329.9,56.09343998]
[1757351789070,36.84187646,4330.0,4329.9,56.09343998]
[1757351789378,35.81941068,4330.0,4329.9,56.52193998]
[1757351789674,35.81941068,4330.0,4329.9,58.54993998]
[1757351789841,35.81941068,4330.0,4329.9,59.42250141]
[1757351790164,31.0790803,4330.0,4329.9,58.99400141]
[1757351790468,31.0790803,4330.0,4329.9,56.09343998]
[1757351790668,32.3090803,4330.0,4329.9,53.21543998]
[1757351790857,32.3090803,4330.0,4329.9,57.04986695]
[1757351791040,32.3090803,4330.0,4329.9,51.79286695]
[1757351791370,32.3090803,4330.0,4329.9,46.25786695]
[1757351791744,32.29410096,4330.0,4329.9,46.25786695]
[1757351792143,9.45424451,4330.0,4329.9,48.87148656]
[1757351792329,1e-08,4330.0,4329.9,48.3911493]
[1757351792530,2.11601278,4330.4,4330.3,7.8379]
[1757351792730,0.026,4330.8,4330.6,0.792]
[1757351792970,2.275,4331.1,4330.8,33.792]
[1757351793367,0.318,4330.9,4330.8,36.3279]
[1757351793970,0.318,4330.9,4330.8,37.7129]
[1757351794530,3.0229,4330.9,4330.8,40.1949]
[1757351794730,4.2529,4330.9,4330.8,40.1949]
[1757351796254,5.4829,4330.9,4330.8,40.1949]
[1757351796975,5.4829,4330.9,4330.8,36.3279]
[1757351797275,5.4829,4330.9,4330.8,40.1949]
[1757351797584,6.7129,4330.9,4330.8,40.1949]
[1757351798082,6.7129,4330.9,4330.8,10.1949]
[1757351798288,6.7129,4330.9,4330.8,40.1949]
[1757351798647,6.7129,4330.9,4330.8,54.1409]
[1757351799366,7.9429,4330.9,4330.8,54.1409]
[1757351799554,7.9429,4330.9,4330.8,58.1409]
[1757351800292,6.21148625,4330.9,4330.8,58.1409]
[1757351800498,6.50848625,4330.9,4330.8,58.1409]
[1757351800722,7.73848625,4330.9,4330.8,58.1409]
[1757351802197,8.96848625,4330.9,4330.8,58.2561]